bitfinex/quotes_SOLUSD_20260217
["timestamp","ask_amount","ask_price","bid_price","bid_amount"]
[1771295685259,0.94645969,87.31,87.286,0.70913071]
[1771295685966,0.94645969,87.31,87.29,3.21113732]
[1771295686167,0.94645969,87.31,87.29,3.91876956]
[1771295686474,11.45256958,87.317,87.291,0.70763224]
[1771295687372,0.86908618,87.325,87.291,0.70763224]
[1771295687870,0.86908618,87.331,87.311,0.70468674]
[1771295688563,0.86908618,87.335,87.311,0.70468674]
[1771295690590,0.940137,87.333,87.31,3.21113732]
[1771295690885,0.940137,87.333,87.309,11.45346692]
[1771295691591,0.940137,87.333,87.304,11.45415831]
[1771295692386,0.940137,87.331,87.3,14.6658545]
[1771295693491,0.940137,87.331,87.31,3.21113732]
[1771295693782,0.940137,87.331,87.31,3.9073851]
[1771295694490,0.940137,87.331,87.304,0.69489728]
[1771295694986,0.940137,87.33,87.304,0.69489728]
[1771295696065,0.1,87.35,87.321,0.69224265]
[1771295696259,0.1,87.35,87.303,11.4543601]
[1771295696260,0.940137,87.348,87.303,40.09026035]
[1771295696482,0.940137,87.346,87.311,11.45331057]
[1771295696685,0.940137,87.346,87.31,3.21113732]
[1771295697288,0.940137,87.346,87.305,12.14491991]
[1771295697587,0.940137,87.346,87.306,0.69093816]
[1771295698079,0.940137,87.346,87.301,18.5]
[1771295698290,0.940137,87.339,87.301,18.5]
[1771295698489,0.940137,87.337,87.311,0.68964865]
[1771295698692,0.940137,87.337,87.302,40.09071956]
[1771295698693,0.940137,87.389,87.331,0.68964865]
[1771295698984,0.940137,87.389,87.305,4.61729252]
[1771295698985,0.940137,87.389,87.36,3.21113732]
[1771295699496,0.940137,87.389,87.37,3.21113732]
[1771295699870,0.940137,87.389,87.37,3.20507242]
[1771295700382,0.940137,87.389,87.35,3.20507242]
[1771295700581,3.20507242,87.39,87.35,3.20507242]
[1771295700582,0.940137,87.387,87.35,3.20507242]
[1771295700774,0.940137,87.379,87.34,3.20507242]
[1771295701087,0.940137,87.369,87.334,11.45028651]
[1771295701581,0.940137,87.366,87.34,3.20507242]
[1771295702573,0.940137,87.364,87.34,3.20507242]
[1771295703589,0.940137,87.362,87.34,3.20507242]
[1771295704088,30.0,87.363,87.35,3.20507242]
[1771295704287,0.940137,87.371,87.35,3.20507242]
[1771295704489,0.940137,87.369,87.35,3.20507242]
[1771295705780,57.30210808,87.41,87.36,3.20507242]
[1771295705781,0.940137,87.391,87.36,3.20507242]
[1771295706180,0.940137,87.389,87.36,3.78489416]
[1771295706379,0.940137,87.389,87.361,0.57982174]
[1771295706888,0.940137,87.389,87.36,3.20507242]
[1771295707398,0.940137,87.387,87.36,3.20507242]
[1771295708903,0.940137,87.387,87.354,0.5786498]
[1771295709201,0.940137,87.387,87.36,3.20507242]
[1771295709597,0.940137,87.385,87.36,3.20507242]
[1771295711702,0.940137,87.383,87.354,0.5786498]
[1771295713381,0.940137,87.383,87.354,12.02625999]
[1771295713986,0.940137,87.381,87.354,0.5786498]
[1771295721712,11.44426642,87.38,87.354,0.5786498]
[1771295721894,0.8939516,87.379,87.354,0.5786498]
[1771295722495,0.8939516,87.385,87.356,0.56162841]
[1771295722691,0.8939516,87.385,87.355,11.44754164]
[1771295723407,0.8939516,87.385,87.333,0.14216157]
[1771295723408,0.8939516,87.379,87.342,18.42]
[1771295723607,0.8939516,87.369,87.332,11.45046912]
[1771295724600,0.8939516,87.367,87.332,11.45046912]
[1771295725603,0.8939516,87.36,87.332,11.45046912]
[1771295725915,0.8939516,87.36,87.32,3.76384497]
[1771295725916,0.8939516,87.359,87.32,3.76384497]
[1771295726213,0.8939516,87.349,87.32,0.55877255]
[1771295726713,0.8939516,87.349,87.322,11.4517635]
[1771295728012,0.8939516,87.347,87.316,0.55601397]
[1771295728198,0.8939516,87.347,87.32,3.20507242]
[1771295729018,0.8939516,87.347,87.307,18.42]
[1771295729019,0.8939516,87.329,87.264,0.55511549]
[1771295729219,0.8939516,87.336,87.31,3.20507242]
[1771295729409,0.8939516,87.336,87.311,0.55511549]
[1771295730116,0.8939516,87.334,87.3,3.20507242]
[1771295731193,0.8939516,87.329,87.291,11.45593474]
[1771295731395,0.8939516,87.329,87.291,12.0092841]
[1771295731612,0.8939516,87.329,87.292,0.55334936]
[1771295731829,0.8939516,87.329,87.291,11.45593474]
[1771295732727,0.8939516,87.327,87.291,11.45593474]
[1771295733223,11.45134324,87.326,87.291,11.45593474]
[1771295733426,0.8939516,87.325,87.291,11.45593474]
[1771295733923,0.8939516,87.323,87.291,11.45593474]
[1771295734427,0.8939516,87.323,87.292,0.55077552]
[1771295736302,3.20507242,87.32,87.293,11.45567227]
[1771295736497,0.8939516,87.319,87.293,11.45567227]
[1771295736699,0.8939516,87.319,87.289,12.00529766]
[1771295736921,0.8939516,87.319,87.29,0.54828935]
[1771295737221,0.8939516,87.317,87.29,3.75336177]
[1771295737519,0.8939516,87.317,87.291,0.54828935]
[1771295738234,30.8939516,87.316,87.292,11.45580351]
[1771295738434,0.8939516,87.315,87.292,11.45580351]
[1771295738727,30.0,87.316,87.293,0.54747959]
[1771295739126,30.8939516,87.316,87.293,0.54747959]
[1771295739338,30.0,87.314,87.293,0.54747959]
[1771295740019,0.8939516,87.316,87.294,11.45554104]
[1771295742221,0.8939516,87.316,87.289,0.5443325]
[1771295744433,0.8939516,87.316,87.29,11.99813178]
[1771295745019,0.8939516,87.316,87.291,0.54132752]
[1771295745414,0.8939516,87.316,87.28,3.20507242]
[1771295745415,0.90662441,87.309,87.27,3.20507242]
[1771295745722,0.90662441,87.299,87.271,0.54132752]
[1771295748621,0.90662441,87.299,87.272,11.45842882]
[1771295749634,0.90662441,87.299,87.272,11.99619023]
[1771295749943,0.90662441,87.299,87.273,0.53776141]
[1771295750445,16.14,87.318,87.26,0.2]
[1771295750446,0.86315894,87.289,87.26,0.2]
[1771295750636,0.86315894,87.279,87.26,0.2]
[1771295751544,3.20507242,87.27,87.26,0.2]
[1771295751739,0.86315894,87.269,87.26,0.2]
[1771295753526,0.86315894,87.267,87.232,0.73505318]
[1771295753728,0.86315894,87.269,87.234,0.73505318]
[1771295754850,0.86315894,87.269,87.236,0.73439545]
[1771295755754,0.86315894,87.269,87.237,11.463026]
[1771295755962,0.86315894,87.269,87.238,0.73374527]
[1771295757952,0.86315894,87.269,87.241,0.73246724]
[1771295758527,0.86315894,87.269,87.239,11.46276321]
[1771295758528,0.86315894,87.299,87.261,0.73183922]
[1771295758734,0.86315894,87.299,87.271,0.73183922]
[1771295758735,0.86315894,87.298,87.271,0.73183922]
[1771295758928,0.86315894,87.304,87.28,3.93590991]
[1771295759151,0.86315894,87.304,87.281,0.73083749]
[1771295760462,0.86315894,87.31,87.287,0.72984728]
[1771295760831,0.86315894,87.31,87.281,12.18700273]
[1771295761034,0.86315894,87.31,87.282,0.72886843]
[1771295762036,0.86315894,87.308,87.282,0.72886843]
[1771295762337,0.86315894,87.308,87.284,0.72790083]
[1771295762747,0.86315894,87.308,87.27,3.21172027]
[1771295762947,0.86315894,87.299,87.267,0.72694435]
[1771295764045,0.86315894,87.299,87.268,11.45895402]
[1771295765861,3.21172027,87.31,87.271,0.7241403]
[1771295766053,3.21172027,87.31,87.27,43.31714022]
[1771295766054,0.86315894,87.314,87.281,0.7241403]
[1771295767364,3.21172027,87.32,87.281,0.7241403]
[1771295767365,0.86315894,87.312,87.281,0.7241403]
[1771295767939,0.86315894,87.309,87.282,11.45711601]
[1771295769150,0.86315894,87.309,87.275,0.72232421]
[1771295769366,0.86315894,87.309,87.277,11.45772193]
[1771295769659,0.86315894,87.299,87.277,11.45772193]
[1771295769862,0.86315894,87.299,87.272,11.45835256]
[1771295770858,11.45331057,87.311,87.267,11.45902783]
[1771295770859,0.86315894,87.297,87.267,11.45902783]
[1771295771044,0.86315894,87.297,87.267,12.17870537]
[1771295771244,0.86315894,87.309,87.271,0.71967754]
[1771295772451,0.86315894,87.306,87.273,0.71881551]
[1771295772948,0.86315894,87.306,87.27,3.21172027]
[1771295773169,0.86315894,87.299,87.263,11.45955769]
[1771295774051,0.86315894,87.299,87.264,0.71628836]
[1771295776870,0.85328667,87.297,87.266,0.7138473]
[1771295777176,0.85328667,87.297,87.271,0.7138473]
[1771295782156,11.45527859,87.296,87.271,0.7138473]
[1771295782360,0.85328667,87.295,87.271,0.7138473]
[1771295785077,0.85328667,87.295,87.263,28.64894838]
[1771295785078,0.85328667,87.305,87.281,0.70773666]
[1771295786158,0.85328667,87.305,87.281,11.45715624]
[1771295786359,0.85328667,87.305,87.282,0.70701178]
[1771295787479,0.85328667,87.305,87.266,18.5]
[1771295787683,16.08,87.321,87.25,0.70629523]
[1771295787684,0.85328667,87.299,87.261,0.70629523]
[1771295787971,0.85328667,87.299,87.262,0.7055869]
[1771295788362,0.85328667,87.299,87.271,0.7055869]
[1771295789060,0.85328667,87.289,87.251,11.46110518]
[1771295789381,0.85328667,87.289,87.26,3.21172027]
[1771295789583,0.85328667,87.287,87.26,3.21172027]
[1771295789881,0.85328667,87.287,87.259,0.70488671]
[1771295790084,0.85328667,87.287,87.257,11.46032065]
[1771295790378,0.85328667,87.287,87.258,0.70419457]
[1771295791077,0.85328667,87.285,87.252,0.70351037]
[1771295792979,0.85328667,87.285,87.25,3.21172027]
[1771295792980,0.85328667,87.285,87.254,0.70216546]
[1771295793181,0.85328667,87.285,87.26,3.21172027]
[1771295794385,0.85328667,87.285,87.259,0.70216546]
[1771295794585,0.85328667,87.283,87.254,0.70150457]
[1771295794974,0.85328667,87.283,87.255,11.46066128]
[1771295795491,0.85328667,87.283,87.255,12.16151255]
[1771295795982,0.85328667,87.283,87.256,0.70020548]
[1771295798580,0.85328667,87.283,87.26,3.91065632]
[1771295799409,0.85328667,87.293,87.261,0.69831226]
[1771295802386,3.21172027,87.29,87.261,0.69831226]
[1771295802570,0.85328667,87.289,87.261,0.69831226]
[1771295802767,0.85328667,87.289,87.253,0.69648352]
[1771295803067,0.85328667,87.289,87.261,0.6958879]
[1771295803271,102.8305184,87.511,87.261,0.6958879]
[1771295803272,0.85328667,87.294,87.261,0.6958879]
[1771295803481,0.85328667,87.308,87.271,0.6958879]
[1771295804489,0.85328667,87.308,87.25,3.21172027]
[1771295804490,11.45383531,87.307,87.282,0.69471709]
[1771295804795,0.86301423,87.306,87.282,0.69471709]
[1771295805509,0.86301423,87.306,87.276,11.45778565]
[1771295805682,0.86301423,87.299,87.261,11.45987325]
[1771295805993,0.86301423,87.289,87.261,11.45987325]
[1771295807086,0.86301423,87.302,87.271,0.69301082]
[1771295807287,12.31658717,87.309,87.281,0.69301082]
[1771295807486,0.86301423,87.308,87.281,0.69301082]
[1771295808498,0.86301423,87.306,87.276,11.45786611]
[1771295809781,0.86301423,87.306,87.271,0.69136268]
[1771295810591,0.81696223,87.304,87.271,0.69136268]
[1771295811810,0.81696223,87.304,87.273,0.69029522]
[1771295812809,0.81696223,87.304,87.281,0.68977067]
[1771295814674,0.81696223,87.31,87.281,0.68977067]
[1771295814874,0.81696223,87.31,87.283,0.68873958]
[1771295815087,0.81696223,87.31,87.29,3.21172027]
[1771295816393,0.81696223,87.31,87.291,0.68773204]
[1771295818695,0.81696223,87.315,87.292,11.45580351]
[1771295820302,103.1,87.386,87.301,0.68578547]
[1771295820502,0.81696223,87.348,87.311,0.68578547]
[1771295820809,0.81696223,87.348,87.321,0.68578547]
[1771295822198,0.81696223,87.346,87.321,0.68578547]
[1771295823398,0.81696223,87.372,87.323,0.68438344]
[1771295823700,51.11649766,87.421,87.322,11.45186779]
[1771295823701,0.81696223,87.359,87.322,11.45186779]
[1771295823901,0.81696223,87.349,87.312,11.4531794]
[1771295824202,0.81696223,87.347,87.312,11.4531794]
[1771295825498,3.20909372,87.34,87.307,11.45381987]
[1771295825685,0.81696223,87.339,87.307,11.45381987]
[1771295826508,0.81696223,87.339,87.31,3.20909372]
[1771295827205,0.81696223,87.339,87.307,11.45381987]
[1771295827602,0.81696223,87.329,87.292,0.68258809]
[1771295828594,0.81696223,87.329,87.3,3.20909372]
[1771295830088,11.45108098,87.328,87.292,0.68258809]
[1771295830294,30.0,87.323,87.293,11.45567227]
[1771295830594,0.81696223,87.322,87.293,11.45567227]
[1771295831588,0.81696223,87.322,87.292,0.68258809]
[1771295831797,0.81696223,87.319,87.292,0.68258809]
[1771295832112,0.81696223,87.319,87.29,3.20909372]
[1771295832308,30.0,87.32,87.29,3.20909372]
[1771295832309,0.81696223,87.317,87.29,3.20909372]
[1771295833319,30.0,87.315,87.29,3.20909372]
[1771295833614,0.81696223,87.314,87.29,3.20909372]
[1771295834818,0.89319841,87.313,87.29,3.20909372]
[1771295835513,0.89319841,87.313,87.285,12.13705067]
[1771295836300,0.89319841,87.299,87.239,0.67844644]
[1771295836509,0.89319841,87.299,87.22,0.2]
[1771295836510,0.89319841,87.269,87.232,0.67844644]
[1771295836719,0.89319841,87.269,87.234,11.46334638]
[1771295836960,0.89319841,87.259,87.234,11.46334638]
[1771295837224,0.89319841,87.259,87.227,11.46428439]
[1771295837605,3.20909372,87.26,87.227,11.46428439]
[1771295837606,0.89319841,87.257,87.227,11.46428439]
[1771295837999,0.89319841,87.257,87.227,12.14195838]
[1771295838720,0.89319841,87.257,87.22,3.40909372]
[1771295838721,0.89319841,87.274,87.241,0.67767399]
[1771295839031,0.89319841,87.274,87.251,0.67767399]
[1771295839526,0.89319841,87.281,87.26,3.20909372]
[1771295840207,0.89319841,87.281,87.251,0.67691919]
[1771295840821,0.89319841,87.281,87.252,11.46105533]
[1771295841010,0.89319841,87.281,87.252,12.13760361]
[1771295841209,0.89319841,87.281,87.253,0.67654828]
[1771295842723,0.89319841,87.281,87.252,11.46105533]
[1771295849240,0.89319841,87.269,87.241,0.67373031]
[1771295849547,0.89319841,87.269,87.232,28.65900086]
[1771295849548,0.89319841,87.269,87.234,0.67373031]
[1771295849713,11.45737855,87.28,87.233,11.46355163]
[1771295849714,0.89319841,87.259,87.233,11.46355163]
[1771295849919,0.89319841,87.259,87.221,0.67339602]
[1771295850115,0.89319841,87.249,87.22,0.2]
[1771295850317,0.89319841,87.239,87.221,11.46512881]
[1771295850517,0.89319841,87.247,87.222,0.67339602]
[1771295850732,0.89319841,87.247,87.22,0.2]
[1771295851218,0.89319841,87.237,87.22,0.2]
[1771295852112,30.0,87.236,87.222,0.67273893]
[1771295852520,30.0,87.236,87.22,0.2]
[1771295853126,0.89319841,87.242,87.22,0.2]
[1771295855941,0.89319841,87.242,87.22,0.87146942]
[1771295857426,11.46250042,87.241,87.221,0.6711611]
[1771295857926,0.89319841,87.249,87.222,0.6711611]
[1771295858242,0.89319841,87.249,87.221,11.46512881]
[1771295859637,0.89319841,87.247,87.221,11.46512881]
[1771295860242,0.89319841,87.247,87.222,0.67025724]
[1771295860544,0.89319841,87.247,87.221,11.46512881]
[1771295860545,0.89319841,87.247,87.22,0.2]
[1771295860931,0.89319841,87.247,87.22,0.87025724]
[1771295862129,0.89319841,87.239,87.22,0.2]
[1771295865333,0.85412065,87.237,87.22,0.2]
[1771295868360,0.85412065,87.249,87.222,0.66772623]
[1771295868670,0.85412065,87.248,87.22,0.2]
[1771295868834,0.85412065,87.239,87.22,0.2]
[1771295870233,0.88780482,87.237,87.22,0.2]
[1771295872329,0.88780482,87.235,87.22,0.2]
[1771295874472,0.88780482,87.233,87.22,0.2]
[1771295874758,11.46342022,87.234,87.2,0.2]
[1771295874759,0.88780482,87.229,87.2,0.2]
[1771295875234,0.88780482,87.229,87.201,11.46775839]
[1771295876345,0.88780482,87.226,87.201,11.46775839]
[1771295876745,0.88780482,87.226,87.202,0.80118295]
[1771295877455,30.0,87.225,87.202,0.80118295]
[1771295878639,30.88780482,87.225,87.202,0.80118295]
[1771295879256,0.88780482,87.224,87.202,0.80118295]
[1771295880459,0.88780482,87.238,87.211,0.80118295]
[1771295880845,0.88780482,87.238,87.203,11.46749538]
[1771295880846,0.88780482,87.269,87.231,0.80118295]
[1771295882359,27.69895402,87.268,87.231,0.80118295]
[1771295882553,0.88780482,87.267,87.231,0.80118295]
[1771295883472,0.88780482,87.267,87.233,0.80118295]
[1771295884072,0.88780482,87.267,87.215,11.46591756]
[1771295884358,11.46289461,87.238,87.204,11.46736388]
[1771295884539,0.88780482,87.237,87.204,11.46736388]
[1771295884964,0.88780482,87.237,87.204,12.26854683]
[1771295885557,0.88780482,87.232,87.204,12.26854683]
[1771295885947,0.88780482,87.232,87.206,11.46710088]
[1771295886358,0.88780482,87.229,87.2,0.2]
[1771295886561,0.88780482,87.227,87.2,0.2]
[1771295887665,0.88780482,87.225,87.2,0.2]
[1771295888365,0.88780482,87.225,87.202,0.80118295]
[1771295888959,0.88780482,87.225,87.201,11.46775839]
[1771295889868,0.88780482,87.225,87.2,1.00118295]
[1771295890267,0.88780482,87.225,87.2,0.2]
[1771295890470,0.88780482,87.223,87.2,0.2]
[1771295891574,0.88780482,87.209,87.18,0.2]
[1771295891872,0.88780482,87.209,87.18,1.00118295]
[1771295892461,0.88780482,87.209,87.184,11.46988098]
[1771295892668,30.0,87.208,87.185,0.80118295]
[1771295892856,0.88780482,87.207,87.185,0.80118295]
[1771295893064,0.88780482,87.199,87.18,0.2]
[1771295893352,30.0,87.208,87.182,0.80118295]
[1771295894256,41.4668379,87.208,87.182,0.80118295]
[1771295894447,30.0,87.208,87.182,0.80118295]
[1771295894874,30.0,87.208,87.184,0.82454733]
[1771295894875,25.39371622,87.208,87.184,0.82454733]
[1771295895554,0.85064332,87.211,87.184,0.82454733]
[1771295897269,0.85064332,87.211,87.186,0.82454733]
[1771295897852,0.85064332,87.219,87.186,0.82454733]
[1771295898756,3.21794499,87.23,87.191,0.82454733]
[1771295899064,0.85064332,87.229,87.191,0.82454733]
[1771295899257,12.31472063,87.229,87.192,11.4689421]
[1771295899456,11.46407731,87.229,87.193,0.82454733]
[1771295899770,0.85064332,87.228,87.193,0.82454733]
[1771295902575,0.85064332,87.228,87.195,0.82454733]
[1771295903276,0.85064332,87.228,87.201,0.82454733]
[1771295904484,0.85064332,87.228,87.202,11.46762688]
[1771295904674,0.85064332,87.228,87.203,0.82454733]
[1771295907369,0.85064332,87.228,87.205,0.82454733]
[1771295910677,0.85064332,87.228,87.191,0.9667089]
[1771295910985,16.28,87.249,87.191,11.46907364]
[1771295910986,0.85064332,87.219,87.191,11.46907364]
[1771295912079,28.6577512,87.237,87.191,11.46907364]
[1771295912080,0.85064332,87.229,87.192,0.82454733]
[1771295912275,0.85064332,87.237,87.201,0.82454733]
[1771295912475,0.85064332,87.237,87.211,0.82454733]
[1771295912669,0.85064332,87.247,87.212,11.46631197]
[1771295912870,0.85064332,87.247,87.213,0.82454733]
[1771295914984,0.85064332,87.245,87.214,11.46604902]
[1771295915189,0.85064332,87.239,87.214,11.46604902]
[1771295915789,0.85064332,87.229,87.203,11.46749538]
[1771295916585,0.85064332,87.229,87.195,0.82454733]
[1771295916886,0.85064332,87.219,87.196,11.46841598]
[1771295917589,0.85064332,87.219,87.196,12.29296331]
[1771295922478,0.85064332,87.231,87.197,0.82454733]
[1771295922878,0.85064332,87.229,87.197,0.82454733]
[1771295924893,0.85064332,87.229,87.199,0.88195498]
[1771295925702,0.84723134,87.235,87.199,0.88195498]
[1771295926403,0.84723134,87.229,87.199,0.88195498]
[1771295927495,0.84723134,87.229,87.201,0.88195498]
[1771295928894,0.84723134,87.229,87.202,11.46762688]
[1771295929078,0.84723134,87.229,87.203,0.88195498]
[1771295931084,0.87381651,87.239,87.205,0.88617494]
[1771295931283,0.87381651,87.239,87.211,0.88617494]
[1771295936299,0.87381651,87.239,87.213,0.88617494]
[1771295937195,0.87381651,87.239,87.212,11.46631197]
[1771295938396,0.87381651,87.239,87.209,0.88617494]
[1771295941292,0.87381651,87.239,87.21,11.46657493]
[1771295941494,0.87381651,87.239,87.211,0.88617494]
[1771295942010,0.87381651,87.237,87.211,0.88617494]
[1771295944702,0.87381651,87.237,87.212,11.46631197]
[1771295947802,0.87381651,87.237,87.213,0.88617494]
[1771295948502,3.21741764,87.25,87.213,0.88617494]
[1771295948700,3.21741764,87.27,87.231,0.88617494]
[1771295949002,0.87381651,87.239,87.212,11.46631197]
[1771295949329,0.87381651,87.239,87.212,9.76768209]
[1771295949625,0.87381651,87.239,87.193,0.14216157]
[1771295949626,0.87381651,87.237,87.178,0.88617494]
[1771295949829,0.87381651,87.209,87.182,0.88617494]
[1771295950003,3.21741764,87.22,87.182,0.88617494]
[1771295951529,3.21741764,87.22,87.183,11.47012605]
[1771295951699,3.21741764,87.22,87.184,0.88617494]
[1771295952114,0.87381651,87.219,87.184,0.88617494]
[1771295952322,0.87381651,87.209,87.184,0.88617494]
[1771295953228,0.87381651,87.199,87.18,1.08617494]
[1771295953433,0.87381651,87.206,87.18,1.08617494]
[1771295953720,0.87381651,87.206,87.181,0.88617494]
[1771295955028,0.83179036,87.204,87.181,0.88617494]
[1771295955322,0.83179036,87.199,87.18,0.2]
[1771295956024,0.83179036,87.189,87.17,0.2]
[1771295958408,3.21741764,87.19,87.172,0.88512622]
[1771295959232,28.66387285,87.218,87.172,0.88512622]
[1771295959233,4.049208,87.2,87.172,0.88512622]
[1771295959533,0.83179036,87.199,87.172,0.88512622]
[1771295960023,0.83179036,87.199,87.173,11.47144184]
[1771295960223,0.83179036,87.199,87.174,0.88512622]
[1771295962830,3.21741764,87.2,87.176,0.88512622]
[1771295963427,0.83179036,87.209,87.176,0.88512622]
[1771295964733,3.21741764,87.2,87.176,0.88512622]
[1771295964939,3.21741764,87.2,87.177,11.47091549]
[1771295965132,3.21741764,87.2,87.178,0.88512622]
[1771295967537,3.21741764,87.2,87.177,11.47091549]
[1771295967538,3.21741764,87.21,87.18,0.88512622]
[1771295968346,4.049208,87.21,87.18,0.88512622]
[1771295968641,4.049208,87.21,87.182,0.88512622]
[1771295968939,0.83179036,87.209,87.182,0.88512622]
[1771295971532,0.83179036,87.209,87.184,0.88512622]
[1771295972052,0.83179036,87.215,87.184,0.88512622]
[1771295972247,3.21741764,87.22,87.184,0.88512622]
[1771295972430,3.21741764,87.22,87.185,0.88512622]
[1771295972622,0.83179036,87.219,87.185,0.88512622]
[1771295973652,0.83179036,87.219,87.187,0.88512622]
[1771295974439,0.83179036,87.209,87.187,0.88512622]
[1771295977240,0.83179036,87.209,87.189,0.88512622]
[1771295981052,0.83179036,87.209,87.191,0.88512622]
[1771295981243,0.83179036,87.209,87.19,11.46920518]
[1771295982651,0.83179036,87.209,87.187,11.46959982]
[1771295983951,0.83179036,87.209,87.187,12.35472604]
[1771295984157,0.83179036,87.209,87.188,0.94719336]
[1771295985859,0.83179036,87.209,87.19,0.94719336]
[1771295986562,0.83179036,87.209,87.184,11.46998767]
[1771295986855,0.91935405,87.199,87.177,11.47087665]
[1771295989042,0.91935405,87.197,87.17,11.67177829]
[1771295989241,0.87366431,87.189,87.17,12.53366303]
[1771295989440,0.87366431,87.189,87.171,0.86188474]
[1771295990362,0.87366431,87.189,87.172,12.33345818]
[1771295990838,0.87366431,87.189,87.173,0.86188474]
[1771295993469,0.87366431,87.189,87.174,11.47131025]
[1771295996151,0.87366431,87.189,87.176,11.47104707]
[1771295996567,3.21741764,87.19,87.177,0.86188474]
[1771295996765,0.87366431,87.194,87.177,0.86188474]
[1771295998158,0.87366431,87.194,87.178,11.47078391]
[1771295998347,0.87366431,87.194,87.179,0.86188474]
[1771295999563,0.87366431,87.217,87.18,3.21741764]
[1771295999767,0.87366431,87.217,87.181,0.86188474]
[1771296000151,16.2,87.235,87.17,0.2]
[1771296000152,3.21741764,87.21,87.182,40.14590167]
[1771296000475,0.87366431,87.209,87.183,0.86188474]
[1771296000671,0.87366431,87.199,87.182,41.00778641]
[1771296001057,3.21741764,87.21,87.183,0.86188474]
[1771296002085,3.21741764,87.21,87.185,0.86188474]
[1771296003078,0.87366431,87.217,87.185,0.86188474]
[1771296004179,0.87366431,87.217,87.187,0.86188474]
[1771296005582,0.87366431,87.228,87.191,0.86188474]
[1771296006255,28.65384625,87.249,87.193,0.86188474]
[1771296006256,3.21838093,87.22,87.193,0.86188474]
[1771296007279,0.87366431,87.229,87.193,0.86188474]
[1771296007785,3.21838093,87.22,87.193,0.86188474]
[1771296008160,3.21838093,87.23,87.193,0.86188474]
[1771296009176,4.09204524,87.24,87.201,0.86188474]
[1771296009378,0.87366431,87.245,87.211,0.86188474]
[1771296009681,0.87366431,87.245,87.212,0.86188474]
[1771296010582,4.09204524,87.25,87.214,0.86188474]
[1771296010763,0.87366431,87.25,87.214,0.86188474]
[1771296011780,0.87366431,87.264,87.231,0.86188474]
[1771296011975,45.90338822,87.33,87.251,0.86188474]
[1771296011976,0.87366431,87.298,87.251,0.86188474]
[1771296012176,0.87366431,87.298,87.261,0.86188474]
[1771296012679,3.21838093,87.29,87.261,0.86188474]
[1771296012882,0.87366431,87.289,87.253,0.86188474]
[1771296013082,0.87366431,87.269,87.24,0.86188474]
[1771296013461,0.87366431,87.269,87.241,0.86188474]
[1771296013665,3.21838093,87.29,87.25,3.21838093]
[1771296013867,0.87366431,87.286,87.261,0.86188474]
[1771296015480,0.88682228,87.298,87.261,0.86188474]
[1771296015667,0.88682228,87.298,87.242,40.11829164]
[1771296015668,0.88682228,87.298,87.273,0.9720675]
[1771296016289,0.88682228,87.298,87.272,11.45842882]
[1771296018288,0.88682228,87.298,87.272,12.43049632]
[1771296018687,0.88682228,87.298,87.273,0.9720675]
[1771296021392,0.88682228,87.298,87.275,0.9720675]
[1771296024618,0.88682228,87.298,87.266,0.9720675]
[1771296026798,0.88682228,87.298,87.268,0.9720675]
[1771296027686,0.1,87.3,87.268,0.9720675]
[1771296027687,0.88682228,87.296,87.268,0.9720675]
[1771296029995,0.88682228,87.296,87.269,12.43089022]
[1771296030777,0.88682228,87.296,87.269,11.45882272]
[1771296030994,0.88682228,87.296,87.27,0.9720675]
[1771296032898,0.88682228,87.296,87.269,11.45882272]
[1771296033112,0.88682228,87.296,87.269,12.43089022]
[1771296033314,0.88682228,87.289,87.264,11.45936931]
[1771296034307,0.88682228,87.294,87.265,0.9720675]
[1771296035106,0.88682228,87.293,87.265,0.9720675]
[1771296035799,0.88682228,87.293,87.25,28.65325725]
[1771296035800,0.88682228,87.289,87.259,11.46001329]
[1771296036388,0.88682228,87.289,87.26,0.9720675]
[1771296037405,0.88682228,87.289,87.262,0.9720675]
[1771296038497,0.88682228,87.287,87.262,0.9720675]
[1771296039002,0.88682228,87.287,87.261,11.45987325]
[1771296044206,0.88682228,87.287,87.262,0.95360318]
[1771296046015,0.88682228,87.287,87.254,0.95360318]
[1771296047316,0.88682228,87.287,87.256,0.95360318]
[1771296049518,0.88682228,87.287,87.258,0.95953579]
[1771296051024,0.89342014,87.285,87.253,11.46086966]
[1771296051198,0.89342014,87.269,87.244,11.4620159]
[1771296051404,0.89342014,87.269,87.245,0.95953579]
[1771296051621,0.89342014,87.269,87.247,0.95953579]
[1771296053423,0.89342014,87.269,87.249,0.95953579]
[1771296054304,3.21838093,87.28,87.251,0.95953579]
[1771296054500,0.89240528,87.279,87.251,0.95953579]
[1771296055020,0.89207474,87.286,87.251,0.95953579]
[1771296055623,11.45557686,87.294,87.261,0.95953579]
[1771296055820,3.31838093,87.3,87.261,0.95953579]
[1771296056133,0.1,87.3,87.271,0.95953579]
[1771296057225,0.1,87.3,87.281,0.95953579]
[1771296057612,0.1,87.3,87.282,11.45711601]
[1771296057827,0.1,87.3,87.283,0.95953579]
[1771296060336,0.1,87.32,87.291,0.95953579]